bitfinex-derivatives/quotes_SOLF0:USTF0_20241203
["timestamp","ask_amount","ask_price","bid_price","bid_amount"]
[1733211716356,2.2141,225.79,225.71,2.2148]
[1733211716787,12.433799,225.82,225.69,1.3528]
[1733211717867,2.88,225.84,225.69,1.3528]
[1733211718120,12.433799,225.88,225.71,12.433799]
[1733211718142,2.88,225.87,225.71,12.433799]
[1733211718161,2.2136,225.84,225.76,2.2143]
[1733211718168,2.88,225.87,225.71,12.433799]
[1733211718199,2.88,225.87,225.74,12.433799]
[1733211721008,2.88,225.87,225.77,1.3752]
[1733211721017,2.88,225.87,225.8,2.214]
[1733211721048,2.88,225.92,225.77,13.808999]
[1733211721060,2.88,225.92,225.8,12.433799]
[1733211721070,15.313799,225.94,225.8,12.433799]
[1733211721091,17.526399,225.94,225.87,2.2133]
[1733211721142,17.526399,225.94,225.85,2.2134]
[1733211721148,17.526399,225.94,225.8,12.433799]
[1733211721155,2.88,225.94,225.83,12.433799]
[1733211721235,15.313799,225.97,225.83,12.433799]
[1733211721853,15.313799,226.0,225.86,12.433799]
[1733211722057,15.313799,226.0,225.87,1.2833]
[1733211723497,2.2121,225.99,225.87,1.2833]
[1733211723763,2.2121,225.99,225.91,2.2128]
[1733211723787,2.2122,225.98,225.91,2.2128]
[1733211723816,15.313799,226.0,225.87,1.2833]
[1733211726685,2.2122,225.98,225.92,2.2128]
[1733211726707,15.313799,226.0,225.92,2.2128]
[1733211726716,2.2127,225.94,225.87,1.2833]
[1733211726738,2.2127,225.93,225.87,1.2833]
[1733211726747,2.88,225.93,225.81,2.5591]
[1733211726771,12.433799,225.91,225.81,1.271]
[1733211726961,2.2132,225.88,225.82,2.2138]
[1733211727467,2.2132,225.88,225.81,1.271]
[1733211727468,2.2134,225.86,225.76,2.88]
[1733211727664,2.88,225.87,225.76,2.88]
[1733211727865,5.0933,225.87,225.79,2.214]
[1733211728313,5.0933,225.87,225.76,2.88]
[1733211728314,2.88,225.87,225.76,2.88]
[1733211729707,5.0933,225.87,225.76,2.88]
[1733211729726,5.0933,225.87,225.77,12.433799]
[1733211729727,2.88,225.87,225.77,12.433799]
[1733211729801,2.88,225.87,225.74,1.368]
[1733211732622,12.433799,225.85,225.74,3.5825]
[1733211732640,2.214,225.81,225.75,2.2145]
[1733211732664,12.433799,225.85,225.75,2.2145]
[1733211732680,2.2139,225.81,225.75,2.2145]
[1733211732716,2.2141,225.79,225.73,3.6135]
[1733211732737,2.88,225.81,225.6,34.6168513]
[1733211732743,2.2145,225.75,225.68,2.2151]
[1733211732767,2.88,225.74,225.64,1.3736]
[1733211733571,2.2148,225.72,225.66,2.2153]
[1733211734205,2.88,225.74,225.64,1.3736]
[1733211735265,2.88,225.74,225.68,2.2151]
[1733211735293,2.88,225.74,225.64,1.3736]
[1733211735342,2.88,225.74,225.63,1.2985]
[1733211735343,12.433799,225.73,225.57,12.433799]
[1733211735369,12.433799,225.7,225.55,4.0664]
[1733211738080,2.2152,225.68,225.55,4.0664]
[1733211738089,12.433799,225.73,225.57,12.433799]
[1733211738099,2.88,225.72,225.57,12.433799]
[1733211738134,12.433799,225.67,225.55,4.0664]
[1733211738168,2.88,225.66,225.55,4.0664]
[1733211738278,2.88,225.67,225.55,4.0664]
[1733211738470,2.88,225.67,225.57,12.433799]
[1733211738772,2.88,225.67,225.55,4.0664]
[1733211738977,2.88,225.67,225.57,12.433799]
[1733211741081,2.88,225.67,225.61,2.2158]
[1733211741094,2.88,225.67,225.57,12.433799]
[1733211741104,2.88,225.67,225.63,2.2156]
[1733211741139,2.88,225.73,225.63,12.433799]
[1733211741276,2.2145,225.75,225.68,2.2151]
[1733211743881,2.2145,225.75,225.63,12.433799]
[1733211743882,2.88,225.78,225.66,12.433799]
[1733211743914,2.88,225.78,225.71,2.2148]
[1733211743981,2.88,225.78,225.72,2.2147]
[1733211744578,1.3065,226.03,225.76,12.433799]
[1733211744877,12.433799,225.89,225.74,12.433799]
[1733211745073,2.88,225.88,225.74,12.433799]
[1733211745278,2.88,225.88,225.7,2.88]
[1733211745279,2.2136,225.84,225.76,2.2143]
[1733211745735,12.433799,225.86,225.71,12.433799]
[1733211747102,2.88,225.85,225.71,12.433799]
[1733211747112,2.2137,225.83,225.74,2.2145]
[1733211747133,2.2137,225.83,225.71,12.433799]
[1733211747151,2.2136,225.84,225.74,2.2145]
[1733211747160,12.433799,225.89,225.71,12.433799]
[1733211747183,2.88,225.88,225.74,12.433799]
[1733211749883,2.2133,225.87,225.78,2.2142]
[1733211749906,2.88,225.88,225.74,12.433799]
[1733211749910,5.0932,225.88,225.79,2.214]
[1733211749929,15.313799,225.88,225.74,12.433799]
[1733211749937,15.313799,225.88,225.77,2.2142]
[1733211749938,2.2136,225.84,225.77,2.2142]
[1733211749947,2.2136,225.84,225.74,12.433799]
[1733211750038,15.313799,225.88,225.74,12.433799]
[1733211750180,12.433799,225.85,225.68,12.433799]
[1733211750391,2.88,225.84,225.68,12.433799]
[1733211750680,2.2141,225.79,225.72,2.2147]
[1733211750981,2.88,225.79,225.71,12.433799]
[1733211751575,2.88,225.79,225.73,2.2146]
[1733211752386,2.88,225.79,225.71,12.433799]
[1733211753167,0.1753,225.9,225.67,4.1339]
[1733211753168,2.88,225.81,225.77,2.2142]
[1733211753473,0.1753,225.9,225.77,12.433799]
[1733211753474,2.88,225.82,225.77,12.433799]
[1733211753491,2.88,225.83,225.77,14.647999]
[1733211753505,2.88,225.83,225.74,12.433799]
[1733211753528,2.88,225.83,225.71,12.433799]
[1733211756552,2.2139,225.81,225.71,12.433799]
[1733211756573,12.433799,225.88,225.74,12.433799]
[1733211756586,12.433799,225.88,225.78,2.2142]
[1733211756587,2.2136,225.85,225.78,2.2142]
[1733211756593,2.88,225.87,225.71,12.433799]
[1733211756618,2.2139,225.82,225.76,2.2144]
[1733211756627,2.88,225.81,225.71,12.433799]
[1733211756644,2.88,225.8,225.74,12.433799]
[1733211756759,2.88,225.8,225.71,12.433799]
[1733211756994,2.88,225.8,225.73,2.2146]
[1733211757294,2.88,225.8,225.71,12.433799]
[1733211757489,2.2142,225.78,225.67,4.1339]
[1733211757684,2.88,225.8,225.69,12.433799]
[1733211759173,2.2141,225.79,225.69,12.433799]
[1733211759421,2.88,225.78,225.69,12.433799]
[1733211759436,2.88,225.77,225.69,12.433799]
[1733211759455,12.433799,225.88,225.72,12.433799]
[1733211759468,2.88,225.87,225.72,12.433799]
[1733211762439,2.88,225.87,225.77,2.2142]
[1733211762440,2.2137,225.83,225.77,2.2142]
[1733211762471,2.88,225.87,225.72,12.433799]
[1733211762483,2.2138,225.82,225.76,2.2143]
[1733211762499,2.88,225.81,225.72,12.433799]
[1733211762517,12.433799,225.88,225.72,12.433799]
[1733211762540,2.2136,225.84,225.77,2.2142]
[1733211762547,2.88,225.83,225.75,12.433799]
[1733211762582,2.88,225.82,225.75,12.433799]
[1733211762590,2.88,225.83,225.79,2.214]
[1733211762679,2.88,225.83,225.75,12.433799]
[1733211762889,2.88,225.83,225.8,2.214]
[1733211763086,2.88,225.83,225.75,12.433799]
[1733211765697,2.2134,225.87,225.75,12.433799]
[1733211765734,2.88,225.86,225.78,12.433799]
[1733211765754,2.88,225.86,225.81,2.2138]
[1733211765766,2.88,225.86,225.78,12.433799]
[1733211765807,66.00290123,225.93,225.78,12.433799]
[1733211765825,68.88290123,225.93,225.84,12.433799]
[1733211769153,4.4232,226.05,225.84,12.433799]
[1733211769154,12.433799,225.99,225.84,12.433799]
[1733211769192,46.08,226.07,225.87,12.433799]
[1733211769193,2.88,225.97,225.87,12.433799]
[1733211769244,2.88,225.97,225.92,2.2128]
[1733211769256,2.88,225.97,225.9,12.433799]
[1733211769288,2.88,225.97,225.91,2.2128]
[1733211769346,2.88,225.97,225.92,2.2128]
[1733211769384,2.88,225.97,225.9,12.433799]
[1733211769396,2.88,225.99,225.9,12.433799]
[1733211769401,2.88,226.0,225.9,12.433799]
[1733211769411,2.2118,226.02,225.95,2.2124]
[1733211769417,2.88,226.01,225.95,2.2124]
[1733211769429,2.88,226.01,225.93,12.433799]
[1733211769478,2.88,226.01,225.96,2.2123]
[1733211771516,2.2121,225.99,225.91,1.3406]
[1733211771533,2.88,226.01,225.91,1.3406]
[1733211771549,2.88,226.01,225.87,2.2132]
[1733211771550,2.2127,225.94,225.87,2.2132]
[1733211771559,2.88,225.94,225.82,2.6935]
[1733211774300,12.433799,225.93,225.82,1.3329]
[1733211774314,12.433799,225.9,225.76,2.2143]
[1733211774331,12.433799,225.9,225.75,12.433799]
[1733211774353,12.433799,225.87,225.72,12.433799]
[1733211774465,2.88,225.86,225.72,13.777199]
[1733211774472,2.88,225.85,225.72,13.777199]
[1733211774481,12.433799,225.88,225.72,13.777199]
[1733211774482,2.88,225.84,225.72,13.777199]
[1733211774488,2.2137,225.83,225.74,2.2145]
[1733211774498,2.88,225.84,225.74,2.2145]
[1733211774523,5.0937,225.84,225.72,13.777199]
[1733211774537,2.88,225.84,225.79,2.214]
[1733211774544,2.88,225.84,225.75,19.89118188]
[1733211774551,2.88,225.84,225.81,2.2138]
[1733211774557,2.88,225.84,225.75,19.89118188]
[1733211774559,2.88,225.89,225.75,19.89118188]
[1733211774584,2.88,225.89,225.84,2.2136]
[1733211779054,2.88,225.89,225.82,2.2138]
[1733211779080,2.88,225.89,225.75,19.89118188]
[1733211779096,2.88,225.89,225.8,2.214]
[1733211779110,2.2133,225.88,225.75,19.89118188]
[1733211779120,2.88,225.89,225.82,2.2137]
[1733211779137,2.2132,225.88,225.75,19.89118188]
[1733211779146,2.2132,225.88,225.81,2.2138]
[1733211779184,2.88,225.89,225.75,19.89118188]
[1733211781037,2.88,225.89,225.72,24.11458188]
[1733211781066,2.88,225.89,225.72,21.23458188]
[1733211781077,19.89118188,225.83,225.59,2.88]
[1733211781096,19.89118188,225.79,225.64,2.6048]
[1733211781114,2.88,225.78,225.64,2.6048]
[1733211781206,19.89118188,225.75,225.57,2.6048]
[1733211783943,19.89118188,225.71,225.57,4.8209]
[1733211783974,2.88,225.7,225.57,1.283]
[1733211784023,2.88,225.7,225.53,2.2166]
[1733211784024,2.2158,225.62,225.53,2.2166]
[1733211784035,2.88,225.61,225.45,19.89118188]
[1733211784040,2.88,225.6,225.45,19.89118188]
[1733211784046,2.88,225.59,225.45,19.89118188]
[1733211784054,3.52995658,225.58,225.45,19.89118188]
[1733211784081,2.88,225.57,225.48,2.2171]
[1733211784092,0.64998037,225.56,225.48,2.2171]
[1733211784100,0.64998037,225.56,225.45,19.89118188]
[1733211784312,0.64998037,225.56,225.48,2.2171]
[1733211784510,0.64998037,225.56,225.45,19.89118188]
[1733211785498,2.88,225.57,225.43,2.6554]
[1733211786503,0.65049936,225.56,225.43,22.54658188]
[1733211789532,2.88,225.57,225.45,2.2174]
[1733211789564,0.65114582,225.56,225.43,22.54658188]
[1733211789595,0.65114582,225.56,225.47,2.2172]
[1733211789630,2.2165,225.55,225.47,2.2172]
[1733211789639,0.65114582,225.54,225.47,2.2172]
[1733211789659,0.65114582,225.54,225.43,22.54658188]
[1733211789663,2.88,225.57,225.43,22.54658188]
[1733211789664,0.65114582,225.53,225.43,22.54658188]
[1733211789718,2.88,225.57,225.43,22.54658188]
[1733211789907,2.86790974,225.56,225.43,22.54658188]
[1733211790109,0.65150974,225.55,225.43,22.54658188]
[1733211790320,0.65150974,225.55,225.49,2.217]
[1733211790505,2.88,225.57,225.49,2.217]
[1733211791316,0.65098588,225.56,225.49,2.217]
[1733211792092,0.65098588,225.56,225.47,2.2172]
[1733211792156,0.65098588,225.56,225.43,22.54658188]
[1733211792168,0.65098588,225.56,225.47,19.89118188]
[1733211792178,2.88,225.58,225.47,19.89118188]
[1733211792310,0.65090538,225.57,225.47,19.89118188]
[1733211794940,0.65090538,225.57,225.52,2.2168]
[1733211794957,2.88,225.58,225.53,2.2167]
[1733211795919,2.88,225.58,225.43,22.54658188]
[1733211796120,2.88,225.58,225.43,2.6554]
[1733211797293,2.2167,225.54,225.47,2.2173]
[1733211798407,2.88,225.58,225.43,2.6554]
[1733211798438,0.65064435,225.57,225.43,2.6554]
[1733211798449,0.65064435,225.57,225.43,22.54658188]
[1733211798463,2.88,225.56,225.43,22.54658188]
[1733211798479,2.88,225.57,225.43,25.42658188]
[1733211801314,2.88,225.59,225.43,25.42658188]
[1733211801321,2.88,225.61,225.47,19.89118188]
[1733211801348,4.4283,225.8,225.43,5.5354]
[1733211801349,2.88,225.62,225.51,19.89118188]
[1733211801355,4.4283,225.8,225.56,2.2163]
[1733211801356,2.88,225.63,225.56,2.2163]
[1733211801365,2.88,225.63,225.51,19.89118188]
[1733211801379,2.88,225.87,225.62,19.89118188]
[1733211801409,2.88,225.87,225.68,19.89118188]
[1733211801416,2.2137,225.85,225.76,2.2144]
[1733211801421,2.88,225.87,225.72,19.89118188]
[1733211801433,2.88,225.87,225.76,19.89118188]
[1733211801456,2.88,225.94,225.76,22.77118188]
[1733211801470,2.88,225.94,225.86,2.2134]
[1733211801517,2.88,225.97,225.82,2.88]
[1733211802663,2.88,225.97,225.87,2.2134]
[1733211803197,2.88,225.97,225.82,2.88]
[1733211803322,2.2126,225.96,225.85,2.2136]
[1733211806058,2.2127,225.94,225.83,2.2137]
[1733211806120,2.2127,225.94,225.84,2.2136]
[1733211806138,2.88,225.97,225.85,2.2136]
[1733211806139,2.2126,225.96,225.85,2.2136]
[1733211806144,2.2126,225.96,225.82,2.88]
[1733211806160,2.2127,225.95,225.86,2.2134]
[1733211806266,2.88,225.97,225.82,2.88]
[1733211806515,2.2129,225.92,225.83,2.2138]
[1733211806716,22.12058985,225.98,225.83,2.2138]
[1733211806717,2.88,225.91,225.83,2.2138]
[1733211807124,2.88,225.91,225.84,2.2137]
[1733211807525,2.88,225.91,225.81,1.3396]
[1733211809319,2.88,225.95,225.81,1.3396]
[1733211809333,2.88,225.95,225.84,19.89118188]
[1733211812176,2.88,225.95,225.88,2.2133]
[1733211812208,2.88,225.95,225.91,2.213]
[1733211812215,5.0922,226.0,225.84,22.77118188]
[1733211812223,19.89118188,226.06,225.88,19.89118188]
[1733211812229,2.88,226.05,225.88,19.89118188]
[1733211812298,2.88,226.05,225.92,19.89118188]
[1733211812307,2.88,226.05,225.92,22.77118188]
[1733211812388,2.88,226.05,225.97,2.2124]
[1733211812533,2.88,226.05,225.92,22.77118188]
[1733211812948,2.22492808,226.15,226.0,19.89118188]
[1733211813964,2.22492808,226.15,226.04,19.89118188]
[1733211814555,2.22492808,226.15,226.08,2.2113]
[1733211814586,2.88,226.17,226.01,4.1639]
[1733211814629,2.88,226.17,226.01,1.2839]
[1733211817463,2.2113,226.09,226.01,1.2839]
[1733211817501,2.86,226.11,226.01,1.2839]
[1733211817511,2.2114,226.08,226.01,1.2839]
[1733211817533,2.2115,226.07,226.01,1.2839]
[1733211817569,22.75118188,226.11,225.92,19.89118188]
[1733211817576,22.75118188,226.11,225.96,2.2124]
[1733211817586,22.75118188,226.11,225.92,19.89118188]
[1733211817593,22.75118188,226.11,225.99,2.2122]
[1733211817594,2.2115,226.07,225.99,2.2122]
[1733211817601,22.75118188,226.11,225.92,19.89118188]
[1733211817610,2.86,226.11,225.96,19.89118188]
[1733211817937,2.86,226.11,225.96,22.75118188]
[1733211818230,2.86,226.13,226.0,19.89118188]
[1733211818866,5.0709,226.13,226.0,19.89118188]
[1733211819474,2.86,226.13,225.96,22.75118188]
[1733211819869,2.2111,226.11,226.03,2.2118]
[1733211819886,2.86,226.13,225.96,22.75118188]
[1733211819898,2.86,226.13,226.0,19.89118188]
[1733211819923,2.86,226.13,226.07,2.2114]
[1733211822625,19.89118188,226.23,226.04,1.3445]
[1733211822632,2.86,226.22,226.04,21.23568188]
[1733211822638,2.86,226.22,226.08,19.89118188]
[1733211822723,2.86,226.22,226.09,2.86]
[1733211822825,5.07,226.22,226.09,2.86]
[1733211822839,2.86,226.22,226.05,2.5836]
[1733211823038,2.86,226.22,226.06,2.2115]
[1733211823039,2.2108,226.14,226.06,2.2115]
[1733211823237,2.86,226.16,226.05,2.5836]
[1733211823754,2.86,226.17,226.05,2.5836]
[1733211826073,2.2106,226.16,226.09,2.2112]
[1733211829283,2.86,226.17,226.07,2.2114]
[1733211829284,2.2107,226.15,226.07,2.2114]
[1733211829310,2.86,226.17,226.0,19.89118188]
[1733211829325,2.86,226.17,225.97,4.195]
[1733211829514,2.2112,226.1,225.97,4.195]
[1733211829522,2.86,226.11,226.04,2.2117]
[1733211829547,5.0711,226.11,226.05,2.2116]
[1733211829583,2.86,226.11,225.97,1.335]
[1733211829603,22.75118188,226.11,225.97,1.335]
[1733211829618,22.75118188,226.11,225.92,19.89118188]
[1733211829657,2.2116,226.06,225.95,2.2126]
[1733211830954,2.86,226.05,225.9,4.0415]
[1733211831256,2.86,226.04,225.9,4.0415]
[1733211831296,2.2122,225.99,225.94,2.2127]
[1733211834127,2.2124,225.97,225.92,2.2128]
[1733211834131,2.2124,225.97,225.9,4.0415]
[1733211834199,2.2124,225.97,225.91,2.213]
[1733211834204,2.2124,225.97,225.9,4.0415]
[1733211834228,2.86,225.98,225.92,2.2129]
[1733211834239,2.86,226.02,225.9,4.0415]
[1733211834244,2.212,226.01,225.95,2.2125]
[1733211834258,2.86,226.02,225.92,19.89118188]
[1733211834757,2.86,226.02,225.9,4.0415]
[1733211835256,2.2124,225.98,225.92,2.2129]
[1733211836877,2.86,226.02,225.94,2.2127]
[1733211836878,2.2121,226.0,225.94,2.2127]
[1733211836893,2.86,226.02,225.9,4.0415]
[1733211837252,5.072,226.02,225.93,2.2127]
[1733211839686,2.86,226.08,225.96,19.89118188]
[1733211839713,2.2115,226.06,225.96,19.89118188]
[1733211839730,2.2115,226.06,226.0,2.2122]
[1733211839751,2.86,226.08,225.96,19.89118188]
[1733211839759,2.2115,226.07,225.96,19.89118188]
[1733211839961,2.86,226.08,225.96,19.89118188]
[1733211840963,2.2116,226.06,225.96,19.89118188]
[1733211841269,2.86,226.08,225.92,22.75118188]
[1733211841458,2.2117,226.05,225.99,2.2122]
[1733211842532,2.86,226.08,225.92,22.75118188]
[1733211843194,2.86,226.08,225.93,1.10699404]
[1733211843211,2.86,226.08,225.94,2.87818671]
[1733211843225,2.86,226.08,225.95,1.10699404]
[1733211843244,2.86,226.08,225.96,2.2125]
[1733211843263,2.86,226.08,225.9,4.0415]
[1733211843264,19.89118188,226.07,225.9,4.0415]
[1733211843293,19.89118188,226.07,225.91,2.87842122]
[1733211846171,2.2124,225.97,225.92,3.31988508]
[1733211846177,2.2124,225.97,225.93,1.10708508]
[1733211846186,2.86,225.99,225.92,2.2128]
[1733211846197,2.2125,225.96,225.93,1.10730058]
[1733211846254,2.86,225.99,225.86,0.13983085]
[1733211846263,2.86,225.99,225.87,5.92212186]
[1733211846287,2.86,225.99,225.88,4.15614726]
[1733211846295,2.2129,225.93,225.89,1.10735968]
[1733211846307,2.2129,225.93,225.9,2.87913518]
[1733211846315,2.86,225.99,225.91,2.87922848]
[1733211846332,2.86,225.99,225.92,1.10735968]
[1733211846346,2.86,225.99,225.88,1.3199]
[1733211846564,2.86,225.99,225.89,5.92907799]
[1733211846762,2.86,226.04,225.92,19.89118188]
[1733211846959,5.0717,226.05,225.93,2.87919203]
[1733211847163,2.86,226.05,225.94,5.92872207]
[1733211847646,2.86,226.05,225.95,2.87919203]
[1733211848643,2.2119,226.03,225.92,2.2128]
[1733211848774,2.86,226.05,225.93,1.10725703]
[1733211848787,2.86,226.05,225.94,1.10725703]
[1733211848808,2.86,226.05,225.88,1.3199]
[1733211848822,2.86,226.05,225.89,5.92921254]
[1733211848832,2.86,226.05,225.9,5.92921254]
[1733211848858,2.86,226.05,225.91,5.92921254]
[1733211851602,2.86,226.05,225.92,5.92882225]
[1733211851609,2.86,226.05,225.93,2.87887626]
[1733211851631,2.86,226.05,225.88,1.3199]
[1733211851644,2.86,226.05,225.89,2.87859156]
[1733211851652,2.86,226.05,225.93,2.2127]
[1733211851661,2.86,226.05,225.88,1.3199]
[1733211851673,2.86,226.05,225.92,19.89118188]
[1733211851691,2.86,226.08,225.96,19.89118188]
[1733211851829,2.86,226.08,226.02,2.2118]
[1733211853060,2.86,226.08,226.0,2.2121]
[1733211853264,2.86,226.08,225.96,19.89118188]
[1733211854771,2.2116,226.06,225.99,2.2122]
[1733211854787,2.86,226.08,225.97,1.3703]
[1733211854820,5.0714,226.08,225.97,1.3703]
[1733211855071,2.2114,226.08,226.0,1.4014]
[1733211857568,2.2114,226.08,226.02,2.2118]
[1733211857590,2.2114,226.07,226.02,2.2118]
[1733211857600,2.86,226.1,226.0,1.4014]
[1733211857607,2.86,226.11,226.0,1.4014]
[1733211857621,5.0711,226.11,226.0,1.4014]
[1733211857715,5.0711,226.11,226.05,2.2116]
[1733211858672,2.2112,226.1,226.05,2.2116]
[1733211861168,2.2113,226.09,226.04,2.2117]
[1733211861210,2.86,226.11,226.05,2.2116]
[1733211863999,2.2116,226.06,226.0,1.4014]
[1733211864017,2.86,226.11,226.0,1.4014]
[1733211864066,2.2117,226.06,226.01,2.2121]
[1733211864095,2.86,226.11,226.0,1.4014]
[1733211864109,2.86,226.11,226.05,2.2117]
[1733211864126,2.86,226.11,226.0,1.4014]
[1733211864199,2.2112,226.1,226.0,1.4014]
[1733211864768,2.86,226.11,226.06,2.2116]
[1733211864972,2.86,226.11,226.0,1.4014]
[1733211865671,2.86,226.11,226.0,21.29258188]
[1733211866772,2.2108,226.15,226.0,21.29258188]
[1733211867438,2.86,226.22,226.08,19.89118188]
[1733211867468,2.86,226.22,226.12,2.211]
[1733211867480,2.2103,226.2,226.08,19.89118188]
[1733211867507,2.86,226.22,226.07,2.86]
[1733211870251,2.86,226.22,226.04,19.89118188]
[1733211870261,19.89118188,226.18,226.02,2.86]
[1733211870281,19.89118188,226.18,226.05,2.2116]
[1733211870290,19.89118188,226.18,226.02,2.86]
[1733211870316,2.2112,226.1,226.02,2.86]
[1733211870328,2.86,226.12,226.0,1.4014]
[1733211870380,2.2113,226.09,226.03,2.2117]
[1733211870877,2.86,226.12,226.0,1.4014]
[1733211871580,2.2116,226.06,226.01,2.212]
[1733211873339,2.86,226.12,226.02,2.2119]
[1733211873354,2.2114,226.07,226.02,2.2119]
[1733211873378,2.86,226.12,226.0,1.4014]
[1733211873379,2.2114,226.08,226.0,1.4014]
[1733211873411,2.86,226.12,226.0,1.4014]
[1733211876232,2.2114,226.08,226.0,1.4014]
[1733211876265,2.2116,226.06,226.01,2.2121]
[1733211876303,2.2116,226.06,226.02,2.2119]
[1733211876313,2.2115,226.07,226.02,2.2119]
[1733211876327,2.2114,226.08,226.03,2.2117]
[1733211876477,2.86,226.12,226.0,1.4014]
[1733211876677,1.331,226.17,226.0,1.4014]
[1733211876678,1.331,226.17,226.01,19.89118188]
[1733211876877,2.86,226.16,226.01,19.89118188]
[1733211877279,2.2113,226.1,226.04,2.2117]
[1733211877474,2.86,226.16,226.04,2.2117]
[1733211877976,2.86,226.16,226.02,2.2119]
[1733211878175,2.86,226.16,226.0,1.4014]
[1733211878374,2.2111,226.12,226.0,1.4014]
[1733211879353,2.86,226.16,226.03,2.2119]
[1733211880165,2.2115,226.07,226.03,2.2119]
[1733211880193,2.2114,226.09,226.0,1.4014]
[1733211880286,2.86,226.1,226.0,1.4014]
[1733211880483,2.2113,226.09,226.0,1.4014]
[1733211882993,2.2113,226.09,226.03,2.2118]
[1733211883004,2.86,226.1,226.0,1.4014]
[1733211883009,2.2115,226.08,226.0,1.4014]
[1733211883016,2.86,226.1,226.04,2.2118]
[1733211883188,2.2114,226.08,226.03,2.2119]
[1733211883485,2.86,226.1,226.0,1.4014]
[1733211883686,2.2117,226.06,226.01,2.2121]
[1733211884089,2.86,226.1,226.0,1.4014]
[1733211884289,2.2116,226.07,226.0,1.4014]
[1733211884681,2.86,226.1,226.0,1.4014]
[1733211884885,2.2117,226.06,226.0,3.6135]
[1733211885185,2.2117,226.06,226.0,1.4014]
[1733211886482,2.86,226.1,226.0,1.4014]
[1733211886984,2.2114,226.09,226.0,1.4014]
[1733211886996,2.2114,226.09,226.03,2.2118]
[1733211887009,2.86,226.1,226.03,2.2118]
[1733211887020,2.2117,226.06,226.01,2.2121]
[1733211887029,2.86,226.1,226.0,1.4014]
[1733211887191,2.2117,226.05,226.0,3.6135]
[1733211889872,2.86,226.1,226.0,3.6135]
[1733211889904,2.86,226.1,226.0,13.81138937]
[1733211889931,2.86,226.1,226.03,12.40998937]
[1733211889952,2.86,226.14,226.03,12.40998937]
[1733211889968,65.9286893,226.19,226.08,12.40998937]
[1733211889985,65.9286893,226.19,226.11,12.40998937]
[1733211890003,2.2103,226.2,226.15,2.2107]
[1733211890489,2.2103,226.2,226.14,2.2108]
[1733211890690,2.2104,226.19,226.14,2.2108]
[1733211890992,2.86,226.21,226.14,2.2108]
[1733211891287,2.86,226.21,226.11,1.3439]
[1733211891288,2.2104,226.19,226.11,1.3439]
[1733211892370,5.0702,226.21,226.14,2.2108]
[1733211893141,2.2103,226.2,226.14,2.2108]
[1733211893153,2.86,226.23,226.11,1.3439]
[1733211893173,2.86,226.23,226.15,2.2107]
[1733211893204,2.2103,226.21,226.15,2.2107]
[1733211896054,2.86,226.23,226.14,2.2108]
[1733211896076,2.2104,226.2,226.15,2.2107]
[1733211896079,2.2104,226.2,226.11,1.3439]
[1733211896096,2.2104,226.2,226.15,2.2107]
[1733211897696,2.2106,226.17,226.12,2.211]
[1733211897895,2.2106,226.17,226.11,1.3439]
[1733211898190,2.86,226.23,226.11,1.3439]
[1733211899345,2.2104,226.19,226.11,1.3439]